bitfinex-derivatives/quotes_SOLF0:USTF0_20250606
["timestamp","ask_amount","ask_price","bid_price","bid_amount"]
[1749170476054,46.38122314,145.41,145.35,4.96122314]
[1749170476451,0.05274232,145.39,145.37,0.04723111]
[1749170476652,6.92784232,145.39,145.37,0.04723111]
[1749170476857,0.05274232,145.39,145.33,4.96122314]
[1749170477059,7.25702314,145.38,145.31,4.96122314]
[1749170477263,48.0559,145.37,145.33,6.8776]
[1749170477664,41.18,145.37,145.33,6.8776]
[1749170477868,0.04342984,145.36,145.34,0.0200683]
[1749170478162,0.04342984,145.36,145.34,6.8971683]
[1749170478463,0.04342984,145.36,145.34,0.0200683]
[1749170478966,6.91972984,145.36,145.34,0.0200683]
[1749170479154,0.04342984,145.36,145.3,4.96122314]
[1749170479562,5.00465298,145.36,145.3,4.96122314]
[1749170480260,6.877,145.35,145.31,6.8783]
[1749170481266,2.21642984,145.36,145.3,4.96122314]
[1749170481767,2.21642984,145.36,145.34,6.8771]
[1749170482071,2.21642984,145.36,145.3,4.96122314]
[1749170483768,9.09272984,145.36,145.3,4.96122314]
[1749170484267,7.17765298,145.36,145.26,41.18]
[1749170484469,0.04863233,145.32,145.29,4.96122314]
[1749170484870,0.04863233,145.32,145.31,6.8786]
[1749170485171,0.04863233,145.32,145.26,41.18]
[1749170485471,0.04863233,145.32,145.3,6.8789]
[1749170485970,0.04863233,145.32,145.31,6.8786]
[1749170488466,41.18,145.41,145.31,9.92244628]
[1749170488666,8.12674676,145.4,145.36,4.96122314]
[1749170488868,6.8751,145.39,145.34,4.96122314]
[1749170489074,13.0879699,145.4,145.34,4.96122314]
[1749170489479,0.05146685,145.37,145.35,0.04863233]
[1749170489676,0.05146685,145.37,145.36,6.8762]
[1749170490683,0.05146685,145.37,145.36,11.83742314]
[1749170491286,6.685e-05,145.37,145.36,11.83742314]
[1749170491484,2.1613,145.4,145.39,6.8748]
[1749170491685,2.1613,145.4,145.39,11.83602314]
[1749170492381,41.23077855,145.41,145.4,6.8743]
[1749170494788,41.23077855,145.41,145.39,11.83592314]
[1749170495085,41.23077855,145.41,145.38,5.00824195]
[1749170495392,41.23077855,145.41,145.38,11.88324195]
[1749170495789,41.23077855,145.41,145.38,5.00824195]
[1749170496493,41.23077855,145.41,145.39,6.8745]
[1749170497697,41.23077855,145.41,145.38,11.88334195]
[1749170497896,41.23077855,145.41,145.38,0.04701881]
[1749170498093,4.3453,145.4,145.35,6.8763]
[1749170498391,4.3453,145.4,145.34,4.96122314]
[1749170498996,11.2198,145.4,145.36,6.8759]
[1749170499298,0.04522138,145.39,145.37,0.05134646]
[1749170500593,0.04522138,145.39,145.38,6.8753]
[1749170509899,0.04522138,145.39,145.37,11.8881696]
[1749170510197,0.04522138,145.39,145.37,5.0125696]
[1749170510402,0.04522138,145.39,145.38,6.8753]
[1749170510999,0.04522138,145.39,145.37,0.05134646]
[1749170511607,0.04522138,145.39,145.37,6.92704646]
[1749170513312,0.04522138,145.39,145.38,6.8753]
[1749170514914,0.04522138,145.39,145.37,11.8880696]
[1749170518713,0.04522138,145.39,145.37,0.05134646]
[1749170518915,4.43622138,145.39,145.37,0.05134646]
[1749170519916,6.00178369,145.38,145.33,4.96122314]
[1749170520110,6.8762,145.37,145.33,11.83862314]
[1749170520316,40.92,145.37,145.33,4.96122314]
[1749170520516,6.8763,145.36,145.33,4.96122314]
[1749170521021,6.92572381,145.36,145.33,4.96122314]
[1749170521321,6.92572381,145.36,145.33,11.83852314]
[1749170521521,0.04942381,145.36,145.33,4.96122314]
[1749170522823,6.877,145.35,145.32,6.8781]
[1749170523626,6.92582381,145.36,145.32,6.8781]
[1749170523923,0.04942381,145.36,145.32,6.8781]
[1749170524823,6.92592381,145.36,145.32,6.8781]
[1749170525022,6.92592381,145.36,145.33,6.8776]
[1749170525626,0.04942381,145.36,145.35,4.96122314]
[1749170525822,0.04942381,145.36,145.35,11.83792314]
[1749170526920,0.04942381,145.36,145.35,4.96122314]
[1749170527823,0.04942381,145.36,145.33,4.96122314]
[1749170528424,0.04942381,145.36,145.33,11.83872314]
[1749170528626,0.04942381,145.36,145.33,4.96122314]
[1749170529419,0.04942381,145.36,145.34,6.8768]
[1749170529618,0.04942381,145.36,145.33,4.96122314]
[1749170530527,0.04942381,145.36,145.35,11.83792314]
[1749170531122,0.04942381,145.36,145.34,6.877]
[1749170532929,0.04942381,145.36,145.33,4.96122314]
[1749170533418,6.92602381,145.36,145.33,4.96122314]
[1749170534225,6.92602381,145.36,145.33,11.83882314]
[1749170534431,0.04942381,145.36,145.33,4.96122314]
[1749170534832,0.04942381,145.36,145.33,11.83872314]
[1749170536335,0.04942381,145.36,145.33,6.8775]
[1749170536528,6.02680687,145.35,145.31,6.8782]
[1749170536733,6.02680687,145.34,145.31,6.8782]
[1749170536934,5.01064695,145.36,145.25,45.66122314]
[1749170536935,6.878,145.33,145.29,6.8793]
[1749170537133,0.04559306,145.32,145.28,4.96122314]
[1749170537433,0.04559306,145.32,145.3,4.96122314]
[1749170537622,0.04559306,145.32,145.31,6.8786]
[1749170543936,47.796,145.37,145.31,6.8786]
[1749170543937,40.92,145.37,145.35,6.8764]
[1749170544236,40.92,145.37,145.35,4.96122314]
[1749170544735,47.7958,145.37,145.35,4.96122314]
[1749170544937,40.96637966,145.37,145.35,5.00855011]
[1749170547230,40.96637966,145.37,145.36,6.8762]
[1749170548030,0.04637966,145.37,145.36,6.8762]
[1749170562248,0.04637966,145.37,145.36,11.83742314]
[1749170562754,0.04637966,145.37,145.36,4.96122314]
[1749170563154,0.04637966,145.37,145.36,11.83742314]
[1749170563555,0.04637966,145.37,145.36,4.96122314]
[1749170563954,6.92247966,145.37,145.35,0.04732697]
[1749170564154,6.0597378,145.36,145.35,0.04732697]
[1749170564654,6.0597378,145.36,145.35,6.92402697]
[1749170564857,0.04637966,145.37,145.35,6.92402697]
[1749170565058,0.04637966,145.37,145.36,4.96122314]
[1749170565453,0.04637966,145.37,145.36,11.83742314]
[1749170566451,0.04637966,145.37,145.36,6.8762]
[1749170566651,0.04637966,145.37,145.36,11.83742314]
[1749170568854,0.04637966,145.37,145.36,6.8762]
[1749170569054,0.04637966,145.37,145.36,11.83742314]
[1749170569959,0.04637966,145.37,145.36,6.8762]
[1749170570159,0.04637966,145.37,145.36,11.83742314]
[1749170571458,0.04637966,145.37,145.35,6.92392697]
[1749170571960,6.92207966,145.37,145.35,0.04732697]
[1749170572357,0.04637966,145.37,145.35,0.04732697]
[1749170573358,6.92247966,145.37,145.35,0.04732697]
[1749170573949,6.8762,145.36,145.35,0.04732697]
[1749170574255,5.97966263,145.36,145.35,0.04732697]
[1749170575056,10.56127726,145.36,145.35,0.04732697]
[1749170576051,10.5565041,145.36,145.35,0.04732697]
[1749170576456,5.97966263,145.36,145.35,0.04732697]
[1749170576659,10.55614926,145.36,145.35,0.04732697]
[1749170576958,10.55615056,145.36,145.35,0.04732697]
[1749170577756,10.55562837,145.36,145.35,0.04732697]
[1749170578663,5.97966263,145.36,145.35,0.04732697]
[1749170578962,10.55562395,145.36,145.35,0.04732697]
[1749170579162,5.97966263,145.36,145.35,0.04732697]
[1749170579362,10.54427438,145.36,145.35,0.04732697]
[1749170579563,10.54422054,145.36,145.35,0.04732697]
[1749170580363,5.97966263,145.36,145.35,0.04732697]
[1749170580563,10.53894506,145.36,145.35,0.04732697]
[1749170580858,17.41514506,145.36,145.35,0.04732697]
[1749170581060,10.53894506,145.36,145.31,4.96122314]
[1749170581263,5.97966263,145.35,145.31,4.96122314]
[1749170581464,40.44,145.36,145.31,4.96122314]
[1749170581666,5.97901828,145.35,145.31,4.96122314]
[1749170581854,40.44,145.36,145.31,4.96122314]
[1749170582056,6.03007537,145.35,145.31,4.96122314]
[1749170582255,6.92711833,145.35,145.31,11.83972314]
[1749170582762,6.92711833,145.35,145.31,4.96122314]
[1749170582964,6.8772,145.34,145.3,4.96122314]
[1749170583167,5.98019249,145.33,145.28,4.96122314]
[1749170583462,0.04448283,145.32,145.29,6.8792]
[1749170583766,0.04448283,145.32,145.28,4.96122314]
[1749170584266,0.04448283,145.32,145.3,4.96122314]
[1749170584457,0.04448283,145.32,145.28,4.96122314]
[1749170584954,0.04448283,145.32,145.28,11.84112314]
[1749170585164,40.48448283,145.32,145.27,4.96122314]
[1749170585464,40.48448283,145.32,145.27,11.84152314]
[1749170585465,6.8789,145.31,145.27,11.84152314]
[1749170586864,47.36278283,145.32,145.28,6.8798]
[1749170587466,47.36278283,145.32,145.29,6.8795]
[1749170588162,47.36278283,145.32,145.28,6.8798]
[1749170588769,40.48448283,145.32,145.27,4.96122314]
[1749170589062,40.48448283,145.32,145.29,4.96122314]
[1749170589260,0.04448283,145.32,145.31,11.83982314]
[1749170593364,0.04448283,145.32,145.31,4.96122314]
[1749170595871,0.04448283,145.32,145.24,175.84922302]
[1749170596076,0.04448283,145.32,145.28,4.96122314]
[1749170596277,6.92278283,145.32,145.28,4.96122314]
[1749170596679,0.04448283,145.32,145.28,4.96122314]
[1749170597779,6.8789,145.31,145.28,11.84122314]
[1749170598276,6.8789,145.31,145.28,4.96122314]
[1749170598478,6.8791,145.3,145.28,4.96122314]
[1749170599282,6.8788,145.31,145.28,4.96122314]
[1749170599482,0.04448283,145.32,145.28,4.96122314]
[1749170599982,6.8787,145.31,145.28,4.96122314]
[1749170600283,6.8787,145.31,145.28,11.84112314]
[1749170600878,6.8787,145.31,145.28,6.8799]
[1749170601875,6.92278283,145.32,145.28,6.8799]
[1749170602080,6.92278283,145.32,145.29,6.8795]
[1749170602280,6.92278283,145.32,145.27,4.96122314]
[1749170602675,46.14817769,145.31,145.24,135.66922302]
[1749170602885,4.96122314,145.28,145.22,4.96122314]
[1749170603085,47.0609,145.27,145.23,6.8822]
[1749170603277,40.18,145.27,145.23,6.8822]
[1749170603480,40.18,145.27,145.22,4.96122314]
[1749170603681,6.92471357,145.26,145.22,11.84372314]
[1749170604376,6.8816,145.25,145.22,4.96122314]
[1749170605378,6.8816,145.25,145.22,6.8828]
[1749170606281,6.882,145.24,145.21,6.8831]
[1749170606479,0.05287975,145.24,145.17,2.3124]
[1749170606785,6.93497975,145.24,145.2,6.8837]
[1749170607375,0.05287975,145.24,145.2,6.8837]
[1749170607981,6.93487975,145.24,145.2,6.8837]
[1749170608479,0.05287975,145.24,145.19,4.96122314]
[1749170609084,6.93487975,145.24,145.2,6.8833]
[1749170610383,6.93487975,145.24,145.21,6.8833]
[1749170610580,6.93487975,145.24,145.15,40.18]
[1749170610581,40.2,145.23,145.15,40.18]
[1749170610785,0.04948486,145.2,145.19,4.96122314]
[1749170611181,0.04948486,145.2,145.19,11.84552314]
[1749170611578,0.04948486,145.2,145.19,6.8843]
[1749170611779,0.04948486,145.2,145.19,11.84552314]
[1749170624997,0.04948486,145.2,145.19,6.8843]
[1749170629892,0.04948486,145.2,145.19,11.84552314]
[1749170630910,0.04948486,145.2,145.19,6.8843]
[1749170631096,0.04948486,145.2,145.18,11.84582314]
[1749170631599,0.04948486,145.2,145.18,4.96122314]
[1749170632203,0.04948486,145.2,145.19,6.8843]
[1749170635998,0.04948486,145.2,145.19,11.84552314]
[1749170638503,0.04948486,145.2,145.19,6.8843]
[1749170638999,0.04948486,145.2,145.19,11.84552314]
[1749170643706,0.04948486,145.2,145.19,6.8843]
[1749170643906,0.04948486,145.2,145.19,11.84552314]
[1749170649808,6.40156593,145.27,145.19,44.91525723]
[1749170650013,6.15137856,145.26,145.24,4.97525723]
[1749170650306,6.15137856,145.25,145.24,4.97525723]
[1749170650514,6.15137856,145.25,145.22,4.97525723]
[1749170650703,6.15137856,145.24,145.22,4.97525723]
[1749170650907,0.04949681,145.24,145.23,4.97525723]
[1749170651110,0.04949681,145.24,145.23,11.85735723]
[1749170651315,0.04949681,145.24,145.23,10.06606164]
[1749170652118,39.94,145.28,145.27,6.8805]
[1749170652311,46.0847411,145.28,145.27,10.06446164]
[1749170652614,6.1447411,145.28,145.27,10.06446164]
[1749170652914,6.1447411,145.28,145.27,6.8805]
[1749170653117,8.54466593,145.35,145.31,6.8784]
[1749170653314,4.52362798,145.34,145.32,5.02026296]
[1749170653512,4.479505,145.33,145.32,0.05119654]
[1749170654009,0.04412298,145.34,145.32,0.05119654]
[1749170654213,6.92142298,145.34,145.32,0.05119654]
[1749170654616,4.48917807,145.33,145.32,0.05119654]
[1749170654917,6.8782,145.32,145.28,6.8799]
[1749170655421,6.8782,145.32,145.29,4.96906642]
[1749170655820,4.49552178,145.31,145.29,5.0151128]
[1749170656022,6.92667208,145.32,145.29,5.0151128]
[1749170656320,0.04847208,145.32,145.29,11.8946128]
[1749170657320,6.92667208,145.32,145.29,5.0151128]
[1749170659122,6.8786,145.31,145.29,5.0151128]
[1749170659323,0.04847208,145.32,145.26,4.96906642]
[1749170659510,44.66906642,145.33,145.26,4.96906642]
[1749170659713,4.51756314,145.32,145.21,41.9353]
[1749170660020,44.66906642,145.33,145.27,4.96906642]
[1749170660213,4.53212569,145.32,145.27,4.96906642]
[1749170660420,0.04529149,145.31,145.27,4.96906642]
[1749170660622,6.92419149,145.31,145.27,11.84946642]
[1749170661217,0.04529149,145.31,145.27,11.84946642]
[1749170661717,0.04529149,145.31,145.29,4.96906642]
[1749170661921,0.04445793,145.31,145.29,4.96906642]
[1749170662420,0.04445793,145.31,145.3,6.8787]
[1749170664520,0.04445793,145.31,145.21,2.6628]
[1749170664521,0.04445793,145.31,145.22,39.7]
[1749170664717,0.04902788,145.28,145.27,4.96906642]
[1749170664915,0.04686972,145.29,145.27,4.96906642]
[1749170665118,0.04686972,145.29,145.26,4.96906642]
[1749170666818,6.92646972,145.29,145.26,11.84996642]
[1749170667019,0.04686972,145.29,145.26,4.96906642]
[1749170667419,0.04686972,145.29,145.27,6.8804]
[1749170667819,0.04686972,145.29,145.26,6.8808]
[1749170668025,6.04419955,145.28,145.26,4.96906642]
[1749170668219,0.04686972,145.29,145.26,4.96906642]
[1749170669225,0.04686972,145.29,145.27,6.8805]
[1749170669422,0.04686972,145.29,145.26,4.96906642]
[1749170669925,0.04686972,145.29,145.26,11.84986642]
[1749170671122,0.04686972,145.29,145.27,6.8803]
[1749170671826,6.03658636,145.28,145.22,39.7]
[1749170672026,44.71593614,145.29,145.23,4.96906642]
[1749170672223,6.8813,145.26,145.23,4.96906642]
[1749170672424,0.0520073,145.27,145.21,4.96906642]
[1749170672624,0.04850842,145.25,145.21,4.96906642]
[1749170672928,6.93020842,145.25,145.21,11.85206642]
[1749170673120,0.04850842,145.25,145.21,4.96906642]
[1749170673325,0.04850842,145.25,145.22,6.8825]
[1749170674432,6.93000842,145.25,145.22,6.8825]
[1749170674730,6.93000842,145.25,145.21,11.85216642]
[1749170674923,6.8819,145.24,145.21,11.85216642]
[1749170675119,0.04850842,145.25,145.21,11.85216642]
[1749170675631,6.93030842,145.25,145.22,6.8828]
[1749170677229,0.04850842,145.25,145.23,6.8823]
[1749170677730,0.04850842,145.25,145.21,4.96906642]
[1749170677925,0.04850842,145.25,145.22,6.8827]
[1749170678327,0.04850842,145.25,145.21,4.96906642]
[1749170678530,0.04850842,145.25,145.23,6.882]
[1749170678825,0.04850842,145.25,145.23,4.96906642]
[1749170679032,0.04850842,145.25,145.24,6.8819]
[1749170682734,0.04850842,145.25,145.22,4.96906642]
[1749170683529,0.04850842,145.25,145.24,6.8819]
[1749170686830,0.04850842,145.25,145.22,4.96906642]
[1749170687531,0.04850842,145.25,145.22,6.8825]
[1749170687532,6.92990842,145.25,145.22,6.8825]
[1749170689147,0.04850842,145.25,145.22,6.8825]
[1749170689437,0.04850842,145.25,145.21,6.883]
[1749170689640,6.93030842,145.25,145.2,39.7]
[1749170689944,50.48590843,145.24,145.19,6.8841]
[1749170690152,6.93123368,145.23,145.19,6.8841]
[1749170690841,11.00535191,145.22,145.15,44.44906642]
[1749170691039,0.04560395,145.2,145.15,44.44906642]
[1749170691242,0.04560395,145.2,145.17,6.8847]
[1749170692645,6.92950395,145.2,145.17,6.8847]
[1749170692945,0.04560395,145.2,145.17,6.8847]
[1749170694249,6.92950395,145.2,145.17,6.8847]
[1749170694453,0.04560395,145.2,145.16,6.8856]
[1749170695346,6.92970395,145.2,145.16,6.8856]
[1749170696051,6.92970395,145.2,145.17,6.8851]
[1749170696546,6.92970395,145.2,145.15,4.96906642]
[1749170696752,6.92970395,145.2,145.16,6.8855]
[1749170696753,6.8844,145.19,145.16,6.8855]
[1749170697452,6.8844,145.19,145.15,6.886]
[1749170697847,6.8847,145.18,145.15,6.886]
[1749170698151,39.54560395,145.2,145.15,6.886]
[1749170698352,6.8845,145.19,145.15,6.886]
[1749170698548,6.8845,145.19,145.16,6.8856]
[1749170699246,6.8849,145.18,145.15,6.8861]
[1749170699547,0.04374316,145.18,145.15,6.8861]
[1749170700349,0.04374316,145.18,145.16,6.8856]
[1749170700857,0.04374316,145.18,145.14,4.96906642]
[1749170701052,0.04374316,145.18,145.1,136.23105557]
[1749170701053,5.01280958,145.18,145.1,175.73105557]
[1749170701251,11.03254354,145.18,145.1,44.46906642]
[1749170701458,6.8854,145.17,145.13,6.8868]
[1749170701858,39.5,145.16,145.13,6.8868]
[1749170702753,39.5,145.16,145.14,6.8865]
[1749170702954,39.54966199,145.16,145.12,4.96906642]
[1749170703156,46.43566199,145.16,145.12,4.96906642]
[1749170703758,39.54966199,145.16,145.12,4.96906642]
[1749170704059,39.54966199,145.16,145.1,4.96906642]
[1749170704454,39.54966199,145.16,145.11,6.8877]
[1749170704853,39.54966199,145.16,145.1,11.85736642]
[1749170705255,41.84426199,145.16,145.1,11.85736642]
[1749170705459,6.8869,145.14,145.1,11.85736642]
[1749170705757,0.04914446,145.13,145.1,11.85736642]
[1749170706956,6.93624446,145.13,145.1,6.8883]
[1749170707554,6.93624446,145.13,145.09,4.96906642]
[1749170707555,6.93624446,145.13,145.09,11.85786642]
[1749170707756,0.04914446,145.13,145.07,4.96906642]
[1749170707957,39.5,145.12,145.04,175.74117627]
[1749170708161,0.04496275,145.09,145.07,6.8897]
[1749170708361,0.04496275,145.09,145.06,4.96906642]
[1749170708557,0.04496275,145.09,145.08,4.96906642]
[1749170708771,39.5,145.15,145.08,4.96906642]
[1749170709059,39.5,145.15,145.05,2.2736]
[1749170709060,39.5,145.15,145.11,4.96906642]
[1749170709461,46.3865,145.15,145.11,6.8876]
[1749170709963,0.04417277,145.14,145.12,0.0467015]
[1749170710460,0.04417277,145.14,145.12,6.9342015]
[1749170710658,0.04417277,145.14,145.12,5.01576792]
[1749170711753,0.04417277,145.14,145.13,6.8871]
[1749170713263,0.04417277,145.14,145.12,11.90316792]
[1749170714661,0.04417277,145.14,145.13,6.8871]
[1749170717359,0.04417277,145.14,145.12,11.90316792]
[1749170719763,0.04417277,145.14,145.12,0.0467015]
[1749170720967,0.04417277,145.14,145.12,6.9341015]
[1749170721868,0.04417277,145.14,145.12,0.0467015]
[1749170723469,0.04417277,145.14,145.12,6.9341015]
[1749170723767,0.04417277,145.14,145.12,0.0467015]
[1749170725169,0.04417277,145.14,145.13,6.8871]
[1749170726973,0.04417277,145.14,145.12,11.90316792]
[1749170727174,0.04417277,145.14,145.12,5.01576792]
[1749170727476,0.04417277,145.14,145.13,6.8871]
[1749170730076,39.3,145.2,145.12,5.01576792]
[1749170730277,39.3,145.2,145.17,4.96906642]
[1749170730472,39.3,145.2,145.18,6.8845]
[1749170730672,39.3,145.2,145.17,4.96906642]
[1749170730874,39.3,145.2,145.12,2.1646]
[1749170731078,39.34404812,145.2,145.17,0.04572515]
[1749170731781,46.22794812,145.2,145.17,0.04572515]
[1749170732281,39.34404812,145.2,145.17,0.04572515]
[1749170732979,6.8846,145.19,145.17,0.04572515]
[1749170733580,6.8847,145.18,145.17,0.04572515]
[1749170733783,4.96906642,145.19,145.11,39.3]
[1749170734080,6.049361,145.18,145.12,4.96906642]
[1749170734283,6.049361,145.17,145.12,11.85646642]
[1749170734477,7.20126642,145.19,145.12,11.85646642]
[1749170734677,6.8858,145.16,145.12,11.85646642]
[1749170734883,0.05141046,145.15,145.13,6.93144126]
[1749170735081,0.05141046,145.15,145.13,0.04454126]
[1749170735673,0.05141046,145.15,145.13,6.93144126]
[1749170737082,0.05141046,145.15,145.13,0.04454126]
[1749170738693,0.05141046,145.15,145.13,6.93154126]
[1749170740396,0.05141046,145.15,145.14,11.85566642]
[1749170741295,0.05141046,145.15,145.14,4.96906642]
[1749170741797,0.05141046,145.15,145.13,6.93144126]
[1749170742199,0.05141046,145.15,145.13,0.04454126]
[1749170742892,0.05141046,145.15,145.13,6.93124126]
[1749170743902,0.05141046,145.15,145.13,0.04454126]
[1749170744700,6.93751046,145.15,145.13,0.04454126]
[1749170744902,6.07126524,145.14,145.13,0.04454126]
[1749170745500,0.05141046,145.15,145.13,0.04454126]
[1749170745701,6.0700019,145.14,145.13,0.04454126]
[1749170746203,0.05141046,145.15,145.13,0.04454126]
[1749170746391,6.06999817,145.14,145.13,0.04454126]
[1749170746596,0.05141046,145.15,145.13,0.04454126]
[1749170747603,6.07767395,145.14,145.13,0.04454126]
[1749170749303,0.05141046,145.15,145.13,0.04454126]
[1749170749707,6.07580297,145.14,145.13,0.04454126]
[1749170751405,6.07552409,145.14,145.13,0.04454126]
[1749170752007,0.05141046,145.15,145.13,6.93164126]
[1749170752706,0.05141046,145.15,145.13,0.04454126]
[1749170756908,6.08648189,145.14,145.13,0.04454126]
[1749170757105,0.05141046,145.15,145.13,6.93154126]
[1749170757810,0.05141046,145.15,145.13,0.04454126]
[1749170758311,6.08654458,145.14,145.13,0.04454126]
[1749170758508,0.05141046,145.15,145.13,0.04454126]
[1749170760210,0.05141046,145.15,145.13,6.93144126]
[1749170761913,0.05141046,145.15,145.13,0.04454126]
[1749170762217,6.93751046,145.15,145.13,0.04454126]
[1749170762415,0.05141046,145.15,145.13,0.04454126]
[1749170763310,6.09394122,145.14,145.13,0.04454126]
[1749170764010,0.05141046,145.15,145.13,6.93154126]
[1749170765117,0.05141046,145.15,145.14,6.8866]
[1749170765311,6.1448784,145.15,145.14,6.8866]
[1749170765516,0.05141046,145.15,145.14,6.8866]
[1749170766217,6.40730608,145.2,145.17,6.8848]
[1749170766418,4.4778,145.21,145.17,6.8848]
[1749170766419,6.09205078,145.19,145.17,11.86532739]
[1749170766618,50.4614,145.21,145.17,11.86532739]
[1749170766619,6.09205078,145.18,145.17,11.86532739]
[1749170767213,6.09205078,145.18,145.17,4.98052739]
[1749170768216,6.09205078,145.18,145.16,0.05051017]
[1749170768518,6.8848,145.18,145.16,0.05051017]
[1749170768717,6.09192181,145.17,145.16,0.05051017]
[1749170769116,52.07712181,145.17,145.16,0.05051017]
[1749170770322,45.19192181,145.17,145.16,0.05051017]
[1749170771420,39.1,145.17,145.16,0.05051017]
[1749170771617,0.04825717,145.19,145.16,5.03103756]
[1749170771817,6.10788806,145.18,145.17,6.8852]
[1749170772216,6.10788806,145.18,145.16,11.91653756]
[1749170772416,0.04825717,145.19,145.16,11.91653756]
[1749170772616,6.10737654,145.18,145.16,11.91653756]
[1749170772915,0.04825717,145.19,145.16,11.91653756]
[1749170773217,6.10723091,145.18,145.16,5.03103756]
[1749170773421,6.93265717,145.19,145.16,5.03103756]
[1749170773623,6.10657098,145.18,145.16,5.03103756]
[1749170773823,6.93265717,145.19,145.16,5.03103756]
[1749170774122,0.04825717,145.19,145.18,4.98052739]
[1749170774514,39.1,145.24,145.21,6.8831]
[1749170774712,6.10232356,145.23,145.21,11.86362739]
[1749170774912,6.10232356,145.22,145.21,11.86362739]
[1749170775121,39.1,145.24,145.21,4.98052739]
[1749170775315,6.09826467,145.23,145.21,4.98052739]
[1749170775522,0.04463985,145.23,145.21,5.02481212]
[1749170776323,0.04463985,145.23,145.21,0.04428473]
[1749170777624,6.92703985,145.23,145.21,0.04428473]
[1749170778622,6.92703985,145.23,145.22,4.98052739]
[1749170778623,0.04463985,145.23,145.22,4.98052739]
[1749170779122,0.04463985,145.23,145.21,0.04428473]
[1749170780132,6.11199848,145.22,145.21,0.04428473]
[1749170780321,12.99479848,145.22,145.21,0.04428473]
[1749170785331,45.82703985,145.23,145.21,0.04428473]
[1749170785523,38.94463985,145.23,145.21,0.04428473]
[1749170785929,45.82733985,145.23,145.21,0.04428473]
[1749170786930,6.8828,145.22,145.21,0.04428473]
[1749170788331,45.82713985,145.23,145.21,0.04428473]
[1749170788926,38.94463985,145.23,145.21,0.04428473]
[1749170789128,6.8828,145.22,145.21,0.04428473]
[1749170793036,12.99023104,145.22,145.21,0.04428473]
[1749170793235,6.8844,145.19,145.17,4.98052739]
[1749170793628,4.98052739,145.21,145.15,4.98052739]
[1749170793834,6.10792274,145.2,145.15,4.98052739]
[1749170794129,38.9,145.19,145.15,4.98052739]
[1749170794334,6.93540477,145.18,145.16,0.05037802]
[1749170794529,0.05040477,145.18,145.16,0.05037802]
[1749170794935,6.93530477,145.18,145.16,0.05037802]
[1749170796530,6.8852,145.17,145.16,0.05037802]
[1749170796733,0.05040477,145.18,145.11,43.88052739]
[1749170796934,6.1230212,145.17,145.11,43.88052739]
[1749170797230,6.8859,145.16,145.11,4.98052739]
[1749170797427,43.88052739,145.19,145.11,4.98052739]
[1749170797627,4.98052739,145.17,145.1,4.98052739]
[1749170797830,0.05009356,145.15,145.12,0.04506195]
[1749170798027,38.95009356,145.15,145.12,0.04506195]
[1749170798233,45.83669356,145.15,145.12,0.04506195]
[1749170798433,38.95009356,145.15,145.12,0.04506195]
[1749170799440,6.8867,145.14,145.12,0.04506195]
[1749170801640,45.83629356,145.15,145.12,0.04506195]
[1749170802747,6.8866,145.14,145.12,0.04506195]
[1749170804840,45.83629356,145.15,145.12,0.04506195]
[1749170805039,38.95009356,145.15,145.12,0.04506195]
[1749170805242,38.95009356,145.15,145.12,6.93226195]
[1749170805436,45.83649356,145.15,145.12,0.04506195]
[1749170805841,38.95009356,145.15,145.12,0.04506195]
[1749170806936,6.8871,145.13,145.12,0.04506195]
[1749170807144,38.95009356,145.15,145.12,0.04506195]
[1749170807345,6.8868,145.14,145.12,0.04506195]
[1749170810835,38.95009356,145.15,145.12,0.04506195]
[1749170811039,4.98052739,145.14,145.08,6.8893]
[1749170811239,4.98052739,145.14,145.06,4.98052739]
[1749170812138,0.04581615,145.11,145.06,4.98052739]
[1749170812540,0.04581615,145.11,145.08,6.8891]
[1749170812745,0.04581615,145.11,145.08,4.98052739]
[1749170812942,5.02634354,145.11,145.0,38.74]
[1749170813142,0.05108044,145.07,145.04,6.891]
[1749170813341,0.05108044,145.07,145.04,4.98052739]
[1749170813543,0.05108044,145.07,145.06,4.98052739]
[1749170813844,0.05108044,145.07,145.06,11.87092739]
[1749170814046,0.05108044,145.07,145.06,6.8904]
[1749170817945,0.05108044,145.07,145.06,11.87092739]
[1749170822154,0.05108044,145.07,145.05,4.98052739]
[1749170823558,0.05108044,145.07,145.06,6.8904]
[1749170825561,0.05108044,145.07,145.05,11.87122739]
[1749170825751,0.05108044,145.07,145.05,4.98052739]
[1749170826154,0.05108044,145.07,145.06,6.8904]
[1749170826355,0.05108044,145.07,145.05,4.98052739]
[1749170826756,0.05108044,145.07,145.05,11.87112739]
[1749170826962,0.05108044,145.07,145.01,4.98052739]
[1749170827365,6.8914,145.04,145.01,11.87302739]
[1749170827563,6.93987932,145.04,145.01,11.87302739]